Cogmind - Beta 12 @@@ ROGUE MODE // 2023.12.14 @ 10:42:11 Player: Leeman Result: Self-destructed Performance ------------- Evolutions (4) 2000 Regions Visited (8) 1600 Robots Destroyed (126) 630 Value Destroyed (3541) 3541 Prototype IDs (2) 40 Alien Tech Used (0) 0 Bonus (511) 511 TOTAL SCORE: 8322 Bonus ------- High Alert Combat Kills 11 Entered DSFs 500 Cogmind --------- Core Integrity 681/850 Matter 57/300 Energy 3/100 System Corruption 0% Temperature Cool (9) Movement Treading (170) Location -6/DSF Parts ------- > --- POWER (2) -------- (None) > --- PROPULSION (4) --- Armored Treads Armored Treads Armored Treads > --- UTILITY (6) ------ Advanced Coolant Injector Large Storage Unit Improved Powered Armor Improved Powered Armor System Shield > --- WEAPON (3) ------- Chainsword > --- INVENTORY (15) --- Improved Ion Engine Light Deuterium Engine Light Nuclear Core Light Treads Light Treads Light Treads Light Treads Improved Heat Sink Cooling System Peak State ------------ > --- POWER ------------ Light Deuterium Engine Light Nuclear Core > --- PROPULSION ------- Armored Treads Armored Treads Armored Treads Armored Treads > --- UTILITY ---------- Heat Sink Advanced Coolant Injector Large Storage Unit Improved Medium Armor Plating System Shield > --- WEAPON ----------- Enhanced Autogun Enhanced Autogun Enhanced Autogun > --- INVENTORY -------- Improved Ion Engine Light Deuterium Engine Light Deuterium Engine Light Nuclear Core Light Nuclear Core Light Treads Light Treads Light Treads Light Treads Improved Heat Sink Cooling System Field Laser Missile Launcher [Rating: 48] Favorites ----------- Power Improved Ion Engine Engine Improved Ion Engine Power Core Light Nuclear Core Propulsion Light Treads Treads Light Treads Utility Large Storage Unit Device Heat Sink Storage Large Storage Unit Processor Signal Interpreter Hackware System Shield Protection Light Armor Plating Weapon Improved Light Cannon Energy Gun Medium Laser Energy Cannon Particle Cannon Ballistic Gun Improved Assault Rifle Ballistic Cannon Improved Light Cannon Launcher Missile Launcher Slashing Weapon Chainsword Build | -11 -10 -10 -9 -9 -8 -7 -6 -6 ------- Run | Jun Mat Min Mat Min Mat Fac Fac DSF Slots Evolved 8 | . . . 2 . 2 2 2 . Power 1 | . . . . . 1 . . . Propulsion 2 | . . . 1 . . 1 . . Utility 4 | . . . 1 . . 1 2 . Weapon 1 | . . . . . 1 . . . Parts Attached 75 | 6 6 . 19 4 19 12 1 8 Power 9 | 1 1 . 1 . 4 . . 2 Engine 7 | 1 1 . 1 . 3 . . 1 Core 2 | . . . . . 1 . . 1 Reactor . | . . . . . . . . . Propulsion 22 | 2 1 . 6 1 4 8 . . Treads 22 | 2 1 . 6 1 4 8 . . Leg . | . . . . . . . . . Wheel . | . . . . . . . . . Hover . | . . . . . . . . . Flight . | . . . . . . . . . Utility 20 | 1 2 . 7 2 3 2 1 2 Device 7 | . 1 . 2 . 3 . 1 . Storage 2 | 1 1 . . . . . . . Processor 1 | . . . 1 . . . . . Hackware 1 | . . . . . . 1 . . Protection 9 | . . . 4 2 . 1 . 2 Artifact . | . . . . . . . . . Weapon 24 | 2 2 . 5 1 8 2 . 4 Energy Gun 9 | 2 1 . . . 5 . . 1 Energy Cannon 2 | . . . 2 . . . . . Ballistic Gun 7 | . . . 3 . 1 2 . 1 Ballistic Cannon 3 | . 1 . . 1 1 . . . Launcher 2 | . . . . . 1 . . 1 Special Weapon . | . . . . . . . . . Impact Weapon . | . . . . . . . . . Slashing Weapon 1 | . . . . . . . . 1 Piercing Weapon . | . . . . . . . . . Special Melee Weapon . | . . . . . . . . . Unidentified Prototypes 2 | . . . 1 . 1 . . . Parts Lost 37 | . 2 . 6 3 9 7 . 10 Power 7 | . 1 . 1 . 1 . . 4 Propulsion 11 | . . . 2 1 3 4 . 1 Utility 8 | . . . 1 1 3 1 . 2 Weapon 11 | . 1 . 2 1 2 2 . 3 Highest Loss Streak 10 | . 2 . 2 3 4 4 . 10 To Critical Strikes . | . . . . . . . . . Average Slot Usage (%) 98 | . 99 100 97 100 98 98 93 79 Engine 11 | . 13 14 10 11 15 7 6 3 Core 1 | . . . . . 2 7 6 4 Treads 29 | . 28 28 31 33 26 28 26 25 Device 12 | . 13 14 11 11 16 11 13 9 Storage 10 | . 14 14 11 11 9 7 6 6 Hackware 1 | . . . . . . 7 6 6 Protection 4 | . . . 9 11 1 3 6 3 Energy Gun 8 | . 24 14 . . 11 5 . 3 Energy Cannon 3 | . . . 5 11 4 . . . Ballistic Gun 6 | . . . 14 5 1 9 20 12 Ballistic Cannon 4 | . 3 14 1 5 8 5 . . Naked Turns . | . . . . . . . . . Heaviest Build 51 | 13 32 32 39 40 50 48 48 51 Greatest Support 80 | 40 40 40 60 60 60 80 80 80 Greatest Overweight (x) 4 | 4 . . 1 . 1 1 . . Average Overweight (x) . | . . . . . . . . . Largest Inventory Capacity 15 | 8 15 15 15 15 15 15 15 15 Average Capacity 13 | 7 10 15 15 15 15 15 15 15 Most Carried 15 | 2 4 3 12 12 15 15 13 13 Average Carried 7 | 1 2 3 6 10 11 13 13 10 Final Capacity 15 | 8 15 15 15 15 15 15 15 15 Final Carried 15 | 2 3 3 12 9 15 14 13 9 Class Distribution -------------------- 37% | Scavenger-Mutant 30% | Mutant 28% | Scavenger-Tank Dominant Class ---------------- Mutant | -10/Materials Mutant | -10/Mines Scavenger-Mutant | -9/Materials Scavenger-Mutant | -9/Mines Scavenger-Tank | -8/Materials Scavenger-Tank | -7/Factory Scavenger-Tank | -6/Factory Gunner | -6/DSF Resources | -11 -10 -10 -9 -9 -8 -7 -6 -6 ----------- Run | Jun Mat Min Mat Min Mat Fac Fac DSF Matter Collected 2226 | 192 148 40 650 112 599 470 . 15 Remotely . | . . . . . . . . . Salvage Created 4263 | . 457 110 1336 316 1053 767 . 224 Parts 250 | . 29 3 99 19 57 32 . 11 Haulers Intercepted 2 | . 1 . 1 . . . . . Recyclers Shooed 2 | . 1 . 1 . . . . . Parts Field Recycled . | . . . . . . . . . Retrieved Matter . | . . . . . . . . . Parts Self-Destructed . | . . . . . . . . . Prevented . | . . . . . . . . . Kills | -11 -10 -10 -9 -9 -8 -7 -6 -6 ------- Run | Jun Mat Min Mat Min Mat Fac Fac DSF Combat Hostiles Destroyed 98 | . 10 3 31 13 24 13 . 4 Guns 52 | . 8 2 16 2 12 8 . 4 Cannons 44 | . 1 1 15 11 11 5 . . AOE 1 | . . . . . 1 . . . Classes Destroyed 16 | . 5 1 4 . 4 1 . 1 Worker 6 | . 3 . 1 . 2 . . . Builder 1 | . . . . . 1 . . . Hauler 2 | . 1 . 1 . . . . . Recycler 5 | . . 1 1 1 1 1 . . Mechanic 1 | . . . . . 1 . . . Operator 2 | . . . 2 . . . . . Watcher 11 | . 3 . 4 . 3 1 . . Swarmer 35 | . 5 3 11 10 6 . . . Grunt 33 | . 5 . 9 3 9 6 . 1 Brawler 1 | . . . 1 . . . . . Duelist 3 | . . . 1 . 1 1 . . Sentry 19 | . . . 9 . 6 4 . . Specialist 2 | . . . . . . . . 2 Hunter 2 | . . . . . 1 1 . . Programmer 1 | . . . . . . 1 . . Heavy 2 | . . . . . 1 . . 1 Best Kill Streak 5 | . 5 3 5 4 4 4 . 3 Combat Bots Only 5 | . 4 3 5 4 3 4 . 3 Max Kills in Single Turn 2 | . 1 1 2 1 2 1 . 1 Gunslinging . | . . . . . . . . . Exploded 1 | . . . . . 1 . . . Melee . | . . . . . . . . . Uniques/NPCs Destroyed . | . . . . . . . . . Combat | -11 -10 -10 -9 -9 -8 -7 -6 -6 -------- Run | Jun Mat Min Mat Min Mat Fac Fac DSF Damage Taken 6637 | . 365 81 1238 458 1388 968 . 2139 Core 622 | . 10 9 129 65 133 107 . 169 Absorbed by Shields 452 | . . . . . 346 106 . . Regen/Repaired (Parts) 416 | . . . 193 . 223 . . . Core Remaining (%) 80 | 100 . 92 . 51 75 84 . . Volleys Fired 328 | . 42 10 105 26 75 45 . 25 Largest 3 | . 2 2 2 2 3 3 . 3 Hottest 170 | . 100 89 107 107 170 129 . 113 Shots Fired 756 | . 83 20 196 52 215 118 . 72 Gun 497 | . 78 10 133 20 99 87 . 70 Cannon 253 | . 5 10 63 32 112 31 . . Launcher 6 | . . . . . 4 . . 2 Special . | . . . . . . . . . Kinetic 414 | . 5 10 156 26 75 94 . 48 Thermal 336 | . 78 10 40 26 136 24 . 22 Explosive 6 | . . . . . 4 . . 2 Electromagnetic . | . . . . . . . . . Robot Hit Streak 22 | . 17 3 21 7 15 11 . 22 Robot Miss Streak 4 | . 3 4 3 3 4 3 . 2 Penetration Max . | . . . . . . . . . Secondary Targets 5 | . 1 . . . . 2 . 2 Max Gunslinging Chain 1 | . 1 . . . . 1 . 1 Shots Hit Robots 490 | . 55 8 139 32 117 75 . 64 Core Hits 207 | . 24 4 50 15 59 33 . 22 Critical Kills 1 | . . . 1 . . . . . Critical Parts Destroyed 1 | . . . . . . . . 1 Critical Strikes 21 | . 8 1 2 . 5 3 . 2 Burn 14 | . 8 . . . 2 3 . 1 Destroy 2 | . . . 1 . . . . 1 Blast 5 | . . 1 1 . 3 . . . Melee Attacks 7 | . . . . . . . . 7 Impact . | . . . . . . . . . Slashing 7 | . . . . . . . . 7 Piercing . | . . . . . . . . . Sneak Attacks . | . . . . . . . . . Combat Hostiles . | . . . . . . . . . Follow-up Attacks . | . . . . . . . . . Damage Inflicted 9205 | . 742 133 2354 633 2454 1295 . 1594 Guns 5419 | . 655 63 1426 218 1048 993 . 1016 Cannons 2968 | . 87 70 928 415 1166 302 . . Explosions 608 | . . . . . 240 . . 368 Melee 210 | . . . . . . . . 210 Ramming . | . . . . . . . . . Kinetic 4756 | . 87 70 1763 326 778 1036 . 696 Thermal 3631 | . 655 63 591 307 1436 259 . 320 Explosive 608 | . . . . . 240 . . 368 Electromagnetic . | . . . . . . . . . Impact . | . . . . . . . . . Slashing 210 | . . . . . . . . 210 Piercing . | . . . . . . . . . Highest Corruption 1 | . . . . . . 1 . . Average Corruption 1 | . . . . . . 1 . . Corruption Purged . | . . . . . . . . . Corruption Blocked . | . . . . . . . . . Effects 1 | . . . . . . 1 . . Matter Fused 1 | . . . . . . 1 . . Overload Shots . | . . . . . . . . . Overflow Damage 30 | . . . 8 . 2 . . 20 Projectiles 10 | . . . 8 . 2 . . . Explosions . | . . . . . . . . . Melee 20 | . . . . . . . . 20 Knockbacks 9 | . . 1 1 . 7 . . . Impact . | . . . . . . . . . Kinetic 8 | . . 1 1 . 6 . . . Secondary 1 | . . . . . 1 . . . Self-Inflicted Damage . | . . . . . . . . . Shots . | . . . . . . . . . Rammed . | . . . . . . . . . Targets Rammed . | . . . . . . . . . Kicked . | . . . . . . . . . Crushed . | . . . . . . . . . Highest Temperature 557 | . 372 111 297 . 557 221 . 105 Average Temperature 105 | . 94 47 133 . 137 66 . 25 Received Heat Transfer 1750 | . 126 . 348 72 360 277 . 567 Effects 17 | . . . . . 17 . . . Shutdowns 4 | . . . . . 4 . . . Energy Bleed 4 | . . . . . 4 . . . Interference 4 | . . . . . 4 . . . Matter Decay 2 | . . . . . 2 . . . Short Circuit 1 | . . . . . 1 . . . Damage (minor) 1 | . . . . . 1 . . . Damage (core) 1 | . . . . . 1 . . . Siege Activations . | . . . . . . . . . Robots Corrupted . | . . . . . . . . . Combat Hostiles . | . . . . . . . . . Parts Fried . | . . . . . . . . . Impact Corruptions . | . . . . . . . . . Robots Melted 1 | . 1 . . . . . . . Combat Hostiles 1 | . 1 . . . . . . . Parts Melted 20 | . 4 1 1 3 6 4 . 1 Heat Transferred 9139 | . 2516 185 1073 555 3182 851 . 777 Parts Sabotaged . | . . . . . . . . . Parts Stolen . | . . . . . . . . . Parts Stripped . | . . . . . . . . . Power Chain Reactions . | . . . . . . . . . Missiles Intercepted . | . . . . . . . . . Alert | -11 -10 -10 -9 -9 -8 -7 -6 -6 ------- Run | Jun Mat Min Mat Min Mat Fac Fac DSF Peak Influence 417 | . 236 156 389 196 417 236 83 108 Initial 151 | . . 79 60 111 33 151 83 58 Average 167 | . 84 113 261 113 220 123 83 62 Maximum Alert Level 2 | . 1 . 1 . 2 1 . . Low Security (%) 64 | 100 79 100 22 100 45 98 100 100 Level 1 32 | . 20 . 77 . 37 1 . . Level 2 3 | . . . . . 16 . . . Level 3 . | . . . . . . . . . Level 4 . | . . . . . . . . . Level 5 . | . . . . . . . . . High Security . | . . . . . . . . . Max Security . | . . . . . . . . . Squads Dispatched 14 | . 3 . 2 . 3 4 . 2 Investigation 2 | . 1 . 1 . . . . . Extermination 1 | . . . . . . 1 . . Reinforcement 11 | . 2 . 1 . 3 3 . 2 Assault . | . . . . . . . . . Garrison . | . . . . . . . . . Intercept . | . . . . . . . . . Searches Triggered . | . . . . . . . . . Construction Impeded 1 | . . . . . 1 . . . Haulers Reinforced . | . . . . . . . . . Active Scanning Responses . | . . . . . . . . . Cargo Convoy Interrupts . | . . . . . . . . . Stealth | -11 -10 -10 -9 -9 -8 -7 -6 -6 --------- Run | Jun Mat Min Mat Min Mat Fac Fac DSF Distress Signals 8 | . . . 4 . 3 1 . . Communications Jammed . | . . . . . . . . . Distress Signals . | . . . . . . . . . Times Spotted 142 | . 21 3 41 14 35 17 . 11 Peak Tracking Total 7 | . 4 3 5 4 7 5 . 5 Tactical Retreats 10 | . 2 . 2 1 4 . . 1 Traps | -11 -10 -10 -9 -9 -8 -7 -6 -6 ------- Run | Jun Mat Min Mat Min Mat Fac Fac DSF Traps Triggered 3 | . 1 . 1 . . . . 1 Indirectly . | . . . . . . . . . Trap Hack Attempts . | . . . . . . . . . Triggered . | . . . . . . . . . Disarmed . | . . . . . . . . . Reprogrammed . | . . . . . . . . . Reused . | . . . . . . . . . Traps Extracted . | . . . . . . . . . Installed . | . . . . . . . . . Triggered . | . . . . . . . . . Machines | -11 -10 -10 -9 -9 -8 -7 -6 -6 ---------- Run | Jun Mat Min Mat Min Mat Fac Fac DSF Machines Disabled 4 | . . . 2 1 1 . . . Max in Single Turn 1 | . . . 1 1 1 . . . Machines Repaired . | . . . . . . . . . Machines Sabotaged . | . . . . . . . . . Overloaded Fab Kills . | . . . . . . . . . Hacking | -11 -10 -10 -9 -9 -8 -7 -6 -6 --------- Run | Jun Mat Min Mat Min Mat Fac Fac DSF Machines Accessed 19 | . 5 . 5 . 5 3 1 . Terminals 14 | . 4 . 4 . 3 2 1 . Fabricators 1 | . . . . . . 1 . . Repair Stations 2 | . . . 1 . 1 . . . Recycling Units 2 | . 1 . . . 1 . . . Scanalyzers . | . . . . . . . . . Garrison Access . | . . . . . . . . . Total Hacks 41 | . 8 . 13 . 12 7 1 . Successful 26 | . 6 . 9 . 8 2 1 . Failed 15 | . 2 . 4 . 4 5 . . Catastrophic 2 | . . . . . 1 1 . . Database Lockouts . | . . . . . . . . . Manual . | . . . . . . . . . Terminals 24 | . 7 . 8 . 6 2 1 . Fabricators 5 | . . . . . . 5 . . Repair Stations 10 | . . . 5 . 5 . . . Recycling Units 2 | . 1 . . . 1 . . . Scanalyzers . | . . . . . . . . . Garrison Access . | . . . . . . . . . Terminal Hacks 15 | . 5 . 5 . 3 1 1 . Record 1 | . . . 1 . . . . . Robot Analysis 1 | . 1 . . . . . . . Open DSF 2 | . . . . . . 1 1 . Alert Level 4 | . 1 . 3 . . . . . Unreport Threat 1 | . . . 1 . . . . . Locate Traps 3 | . 2 . . . 1 . . . Investigation Status 1 | . . . . . 1 . . . Reinforcement Status 1 | . 1 . . . . . . . Zone Layout 1 | . . . . . 1 . . . Fabricator Hacks 1 | . . . . . . 1 . . Build 1 | . . . . . . 1 . . Repair Station Hacks 8 | . . . 4 . 4 . . . Scan Component 4 | . . . 2 . 2 . . . Repair 4 | . . . 2 . 2 . . . Recycling Unit Hacks 2 | . 1 . . . 1 . . . Report Inventory 1 | . 1 . . . . . . . Retrieve Components 1 | . . . . . 1 . . . Scanalyzer . | . . . . . . . . . Garrison Access Hacks . | . . . . . . . . . Unauthorized Hacks . | . . . . . . . . . Terminals . | . . . . . . . . . Fabricators . | . . . . . . . . . Repair Stations . | . . . . . . . . . Recycling Units . | . . . . . . . . . Scanalyzers . | . . . . . . . . . Garrison Access . | . . . . . . . . . Data Cores Recovered 2 | . . . 2 . . . . . Used . | . . . . . . . . . Hacking Detections 12 | . 2 . 3 . 5 2 . . Full Trace Events 1 | . . . 1 . . . . . Feedback Events . | . . . . . . . . . Feedback Blocked . | . . . . . . . . . Robot Schematics Acquired . | . . . . . . . . . Robots Built . | . . . . . . . . . Authchips . | . . . . . . . . . Time . | . . . . . . . . . Total Robot Build Rating . | . . . . . . . . . Part Schematics Acquired . | . . . . . . . . . Parts Built 2 | . . . . . . 2 . . Authchips . | . . . . . . . . . Time 58 | . . . . . . 58 . . Total Part Build Rating 14 | . . . . . . 14 . . Parts Repaired 4 | . . . 2 . 2 . . . Time 110 | . . . 52 . 58 . . . Parts Recycled . | . . . . . . . . . Recycled Matter . | . . . . . . . . . Retrieved Matter . | . . . . . . . . . Retrieved Components 9 | . . . . . 9 . . . Parts Scanalyzed . | . . . . . . . . . Part Schematics Acquired . | . . . . . . . . . Parts Damaged . | . . . . . . . . . Bothacking | -11 -10 -10 -9 -9 -8 -7 -6 -6 ------------ Run | Jun Mat Min Mat Min Mat Fac Fac DSF Used RIF Installer . | . . . . . . . . . Robots Hacked . | . . . . . . . . . Non-combat . | . . . . . . . . . Combat . | . . . . . . . . . Robot Hacks Applied . | . . . . . . . . . Relay Couplers Released . | . . . . . . . . . Fabnet Peak Effective % . | . . . . . . . . . Robots Rewired . | . . . . . . . . . Allies Hacked . | . . . . . . . . . Hacks Repelled . | . . . . . . . . . Allies | -11 -10 -10 -9 -9 -8 -7 -6 -6 -------- Run | Jun Mat Min Mat Min Mat Fac Fac DSF Total Allies 1 | . . . . 1 . . . . Largest Group 1 | . . . . 1 . . . . Highest-Rated Group 31 | . . . . 31 . . . . Highest-Rated Ally 31 | . . . . 31 . . . . Total Orders . | . . . . . . . . . Ally Attacks . | . . . . . . . . . Total Damage . | . . . . . . . . . Kills . | . . . . . . . . . Allies Corrupted . | . . . . . . . . . Allies Melted . | . . . . . . . . . Intel | -11 -10 -10 -9 -9 -8 -7 -6 -6 ------- Run | Jun Mat Min Mat Min Mat Fac Fac DSF Robot Analysis Total 1 | . 1 . . . . . . . Derelict Logs Recovered 1 | . . . . 1 . . . . Drone Launches . | . . . . . . . . . Drone Recoveries . | . . . . . . . . . Exploration | -11 -10 -10 -9 -9 -8 -7 -6 -6 ------------- Run | Jun Mat Min Mat Min Mat Fac Fac DSF Turns Passed 8942 | 50 1891 396 2485 1189 1619 1101 18 193 Spaces Moved 3664 | 27 707 95 1132 619 655 364 11 54 Core 8 | 8 . . . . . . . . Treads 3656 | 19 707 95 1132 619 655 364 11 54 Legs . | . . . . . . . . . Wheels . | . . . . . . . . . Hover . | . . . . . . . . . Flight . | . . . . . . . . . Fastest Speed 50 | 50 160 160 160 160 160 160 170 170 Average Speed 160 | 149 160 160 160 160 160 163 170 170 Slowest Speed 250 | 250 160 160 240 160 240 240 170 170 Overloaded Moves . | . . . . . . . . . Propulsion Burnouts . | . . . . . . . . . Robots Hopped . | . . . . . . . . . Cave-ins Triggered . | . . . . . . . . . Exploration Rate (%) 46 | 3 94 29 85 100 51 11 1 41 Regions Visited 8 Branch Regions 2 Pre-discovered Areas . | . . . . . . . . . Known Exits Taken 3 | . . . 1 1 . . 1 . Unknown Exits Taken 5 | 1 1 1 . . 1 1 . . Scrap Searched 2 | . . . . 2 . . . . Spaces Dug . | . . . . . . . . . Terrain Destroyed 49 | . . 2 2 . 35 . . 10 Melee . | . . . . . . . . . Projectile 7 | . . 2 2 . 3 . . . AOE 42 | . . . . . 32 . . 10 Terrain Rammed . | . . . . . . . . . Walls Destroyed . | . . . . . . . . . Machines Disabled . | . . . . . . . . . Actions | -11 -10 -10 -9 -9 -8 -7 -6 -6 --------- Run | Jun Mat Min Mat Min Mat Fac Fac DSF Total 6073 | 34 1383 319 1604 765 1056 795 11 106 Wait 1941 | . 622 215 321 116 284 371 . 12 Move 3656 | 26 706 94 1131 618 654 363 10 54 Hop . | . . . . . . . . . Pick Up 49 | 2 4 . 18 1 20 4 . . Fast Attach 21 | 6 1 . 7 . 3 1 . 3 Attach 38 | . 2 . 9 3 11 8 1 4 Detach 2 | . . . 2 . . . . . Swap 16 | . 3 . 3 1 5 3 . 1 Drop 15 | . 3 . 8 . 4 . . . Fire 328 | . 42 10 105 26 75 45 . 25 Melee 7 | . . . . . . . . 7 Ram . | . . . . . . . . . Kick . | . . . . . . . . . Crush . | . . . . . . . . . Escape Stasis . | . . . . . . . . . Rewire . | . . . . . . . . . Trap . | . . . . . . . . . Miscellaneous . | . . . . . . . . . Route ------- -11/Junkyard -10/Materials (discovered 5 exits: *Mat x3 / [*Min x2]) -10/Mines -9/Materials (discovered 5 exits: *Mat x3 / *Min / [*Sto]) -9/Mines (discovered 2 exits: *Mat x2) -8/Materials -7/Factory -6/Factory -6/DSF History --------- Turn | Location | Event 25 | -11/Junkyard | Discovered new exit (range 15) 51 | -11/Junkyard | Entered Materials 306 | -10/Materials | Build established: Mutant 445 | -10/Materials | Discovered new exit (range 9) 1240 | -10/Materials | Discovered new exit (range 6) 1505 | -10/Materials | Discovered new exit (range 7) 1629 | -10/Materials | Discovered new exit (range 9) 1710 | -10/Materials | Discovered new exit (range 13) 1942 | -10/Materials | Entered Mines 1949 | -10/Mines | Met a Derelict bent on vengeance 2155 | -10/Mines | Discovered new exit (range 9) 2199 | -10/Mines | Assembled infested the area 2338 | -10/Mines | Entered Materials 2338 | -9/Materials | Evolved 2 slots: Propulsion x1, Utility x1 2678 | -9/Materials | Discovered new exit (range 9) 2885 | -9/Materials | Discovered new exit (range 16) 2948 | -9/Materials | Build established: Scavenger-Mutant 3137 | -9/Materials | Repaired Lgt. Treads 3164 | -9/Materials | Repaired Lgt. Treads 3487 | -9/Materials | Discovered new exit (range 5) 3868 | -9/Materials | Discovered new exit (range 15) 4315 | -9/Materials | Discovered new exit (range 16) 4596 | -9/Materials | Identified exit to Materials 4822 | -9/Materials | Identified exit to Mines 4823 | -9/Materials | Entered Mines 4897 | -9/Mines | Received a Mining Laser from a helpful Derelict 5306 | -9/Mines | Learned Materials terminal intel 5348 | -9/Mines | Discovered exit to Materials (range 9) 5498 | -9/Mines | Lost 3 parts (1n1u1w) 5807 | -9/Mines | Discovered exit to Materials (range 9) 6012 | -9/Mines | Entered Materials 6012 | -8/Materials | Evolved 2 slots: Power x1, Weapon x1 6013 | -8/Materials | Loaded intel: 12 terminal locations 6334 | -8/Materials | Build established: Scavenger-Tank 6602 | -8/Materials | Repaired Lgt. Treads 6636 | -8/Materials | Repaired Imp. Light Cannon 7078 | -8/Materials | Discovered new exit (range 15) 7124 | -8/Materials | Lost 4 parts (1p1n1u1w) 7631 | -8/Materials | Entered Factory 7631 | -7/Factory | Evolved 2 slots: Propulsion x1, Utility x1 7715 | -7/Factory | Fabricated Adv. Coolant Injector (x2) 8230 | -7/Factory | Discovered new exit (range 11) 8606 | -7/Factory | Lost 4 parts (2n2w) 8732 | -7/Factory | Entered another Factory area 8732 | -6/Factory | Evolved 2 slots: Utility x2 8750 | -6/Factory | Identified exit to DSF 8750 | -6/Factory | Entered DSF 8770 | -6/DSF | Additional patrols routed to DSF 8923 | -6/DSF | Found Imp. Powered Armor 8926 | -6/DSF | Found Imp. Powered Armor 8943 | -6/DSF | Self-destructed Last Messages --------------- Targeting Computer melted. X-62 Marksman destroyed. Switching to secondary target: X-62 Marksman. X-62 Marksman suffers critical hit (Destroy). Destroyed Imp. Carbon-fiber Leg. X-62 Marksman destroyed. C-30 ARC bursts open, deploying its payload. L-41 Fighter unfolds itself. G-50 Soldier unfolds itself. Lgt. Nuclear Core destroyed. Enh. Autogun severed. Critical hit (Burn: +37). Enh. Autogun destroyed. Critical hit (Burn: +37). Acquired Chainsword. Destroyed Microactuators. Arm. Treads destroyed. L-41 Fighter destroyed. Acquired Imp. Powered Armor. Field Laser destroyed. Map ----- +----------------------------------------------------+ | | | | | | | | | | | | | | | | | ??????????????????????????????????????????? | | ??????????????????????????????????????????? | | ??????????????????????????????????????????? | | ???????????????????????????????##?????????? | | ??????????????????????????????#""?????????? | | ??????????????????????????????#"#?????????? | | ?????????????#########???????##"####??????? | | ?????????????#!!!!! #########"""""#??????? | | ??????#!!#!!!#!!!!! #///# ##"""""#??????? | | ????? %""##"????? | | ????? %%""""????? | | ?????????# ### ### #//## %%"###????? | | ?????????????### ????# #//### ###??????? | | ?????????????# ??##########= ##???????? | | ?????????????# ########//[!/#???????? | | ?????????????# / ggg //%!!/#???????? | | ???????????????# #####! #####%%##???????? | | ???????????????????????#!@#?# [%!#???????? | | ???????????????????????####?# [ #???????? | | ???????????????????????????## #???????? | | ?????????????????????#######"## ###??????? | | ??????????????????????!!!" ## #??????? | | ?????????????? !!!# "# ##?????? | | ?????????????? [ " #???? | | ?????????????? = % % % " ##???? | | ?????????????? !%! "##????? | | ??????????????? !##!!!# ## ##?????? | | ??????????????? ?????#!!!# ?# #??????? | | ?????????????????????###?####?######??????? | | ??????????????????????????????????????????? | | ??????????????????????????????????????????? | | ??????????????????????????????????????????? | | ??????????????????????????????????????????? | | ??????????????????????????????????????????? | | ??????????????????????????????????????????? | | ??????????????????????????????????????????? | | ??????????????????????????????????????????? | | ??????????????????????????????????????????? | | ??????????????????????????????????????????? | | ??????????????????????????????????????????? | | ??????????????????????????????????????????? | | ??????????????????????????????????????????? | +----------------------------------------------------+ Best States ------------- Heat Dissipation 53 Coolant Potential 100 Energy Generation 23 Energy Capacity 430 Matter Stores 300 Matter Capacity 300 Sight Range 16 Robot Scan Range 14 Terrain Scan Density 10 Armor Coverage 800 Evasion (%) 40 Recoil Reduction 4 Defensive Hacking 10 Item Schematics ----------------- None Robot Schematics ------------------ None Fabricated ------------ Adv. Coolant Injector | x2 | -7/Factory | Preloaded Alien Tech Used ----------------- None Achievements -------------- Just What I Needed Challenges ------------ None Game ------ Seed GravitonPrecisionLance Manual? 0 Play Time 01:22:46 Cumulative 12.3 hours Start 2023.12.14 @ 08:06:29 End 2023.12.14 @ 10:42:11 Sessions 1 Manual Loads 0 Difficulty Rogue Special Mode None Game No. 15 Rogue 15 Adventurer 0 Explorer 0 Win Type - Total 0 Types 0/0/0/0/0/0/0/0/0 Lore% 15 Gallery% 11 Achievement% 12 Wizard Run 0 Options --------- ASCII 0 Keyboard 0 Movement Mouse Keybinds 0 Fullscreen 1 Font 18/SmallcapsGlow Map View 76x50 Tactical HUD 0 Map Filters NONE Filters NONE Steam 1 RUN: 2edc62de-957c-4bd0-b595-7f8bcba44956